[Event "*** MasterClass Titled Tuesday Blitz"]
[Site "Chess.com"]
[Date "2017.08.01"]
[Round "10"]
[White "SipkeErnst"]
[Black "Bengalas"]
[Result "0-1"]
[WhiteElo "2491"]
[BlackElo "2496"]
[TimeControl "180+2"]
[EndTime "15:18:37 PDT"]
[Termination "Bengalas won by resignation"]

1. h4 {[%clk 0:03:01.9]} 1... e5 {[%clk 0:02:52.2]} 2. h5 {[%clk 0:03:01.8]}
2... d5 {[%clk 0:02:49]} 3. a4 {[%clk 0:03:02.5]} 3... Nc6 {[%clk 0:02:49.2]} 4.
a5 {[%clk 0:03:02.8]} 4... a6 {[%clk 0:02:49.5]} 5. e3 {[%clk 0:03:01.2]} 5...
h6 {[%clk 0:02:50.3]} 6. d3 {[%clk 0:02:54]} 6... Nf6 {[%clk 0:02:51.2]} 7. Be2
{[%clk 0:02:48.1]} 7... Be6 {[%clk 0:02:50.3]} 8. c3 {[%clk 0:02:47.8]} 8... Qd7
{[%clk 0:02:47.3]} 9. d4 {[%clk 0:02:47.3]} 9... Be7 {[%clk 0:02:31.1]} 10. Nf3
{[%clk 0:02:46.9]} 10... e4 {[%clk 0:02:31.5]} 11. Nh2 {[%clk 0:02:45.9]} 11...
O-O {[%clk 0:02:28.5]} 12. b3 {[%clk 0:02:38.6]} 12... Nh7 {[%clk 0:02:24.7]}
13. c4 {[%clk 0:02:32.5]} 13... Nb4 {[%clk 0:02:20.1]} 14. Nc3 {[%clk
0:02:24.3]} 14... f5 {[%clk 0:02:19.7]} 15. g4 {[%clk 0:02:23.8]} 15... fxg4
{[%clk 0:02:06.8]} 16. Nxg4 {[%clk 0:02:11.4]} 16... c6 {[%clk 0:01:58.2]} 17.
Ne5 {[%clk 0:02:11]} 17... Qe8 {[%clk 0:01:55.1]} 18. Ng6 {[%clk 0:02:07]} 18...
Ng5 {[%clk 0:01:46.2]} 19. Ra4 {[%clk 0:01:55.8]} 19... Nf3+ {[%clk 0:01:33.6]}
20. Bxf3 {[%clk 0:01:46.4]} 20... Nd3+ {[%clk 0:01:34]} 21. Qxd3 {[%clk
0:00:52.1]} 21... exd3 {[%clk 0:01:32.4]} 22. cxd5 {[%clk 0:00:50]} 22... Rxf3
{[%clk 0:01:23.8]} 23. dxe6 {[%clk 0:00:50.3]} 23... Bd6 {[%clk 0:01:13.7]} 24.
d5 {[%clk 0:00:49.8]} 24... cxd5 {[%clk 0:01:06.3]} 25. Nxd5 {[%clk 0:00:46.9]}
25... Qxe6 {[%clk 0:01:05.7]} 26. Rd4 {[%clk 0:00:44.5]} 26... Rh3 {[%clk
0:00:30.9]} 27. Rg1 {[%clk 0:00:42.5]} 27... Rxh5 {[%clk 0:00:24]} 28. Ngf4
{[%clk 0:00:29.6]} 28... Bxf4 {[%clk 0:00:24.3]} 29. Nxf4 {[%clk 0:00:30.2]}
29... Qc6 {[%clk 0:00:17.9]} 30. Rc4 {[%clk 0:00:25.5]} 30... Rh1 {[%clk
0:00:15.9]} 31. Rxh1 {[%clk 0:00:16.6]} 31... Qxh1+ {[%clk 0:00:16.6]} 32. Kd2
{[%clk 0:00:18.5]} 32... Rd8 {[%clk 0:00:16.1]} 33. Bb2 {[%clk 0:00:17.6]} 33...
Qf1 {[%clk 0:00:16.3]} 34. Bd4 {[%clk 0:00:16.2]} 34... Qxf2+ {[%clk 0:00:16.9]}
35. Kxd3 {[%clk 0:00:16.5]} 35... Qf1+ {[%clk 0:00:17.8]} 36. Ke4 {[%clk
0:00:16.9]} 36... Qb1+ {[%clk 0:00:17]} 37. Kf3 {[%clk 0:00:16.1]} 37... Qf5
{[%clk 0:00:17.4]} 38. Rc7 {[%clk 0:00:16.8]} 38... Rd7 {[%clk 0:00:18.2]} 39.
Rc8+ {[%clk 0:00:17.8]} 39... Kh7 {[%clk 0:00:19]} 40. Rc5 {[%clk 0:00:19.7]}
40... Qf7 {[%clk 0:00:19.1]} 41. b4 {[%clk 0:00:19.2]} 41... Rc7 {[%clk
0:00:19.2]} 42. Rxc7 {[%clk 0:00:13.5]} 42... Qxc7 {[%clk 0:00:19.7]} 43. e4
{[%clk 0:00:15.1]} 43... g5 {[%clk 0:00:19.7]} 44. Nd5 {[%clk 0:00:15.6]} 44...
Qc4 {[%clk 0:00:20]} 45. Ke3 {[%clk 0:00:15.9]} 45... h5 {[%clk 0:00:19.3]} 46.
Nf6+ {[%clk 0:00:14.1]} 46... Kg6 {[%clk 0:00:19.8]} 47. Nd7 {[%clk 0:00:15.1]}
47... Qxb4 {[%clk 0:00:18.7]} 48. Ne5+ {[%clk 0:00:15.9]} 48... Kh7 {[%clk
0:00:18.8]} 49. Nf3 {[%clk 0:00:15.4]} 49... Qxa5 {[%clk 0:00:18.5]} 50. e5
{[%clk 0:00:15.4]} 50... Kg6 {[%clk 0:00:17.1]} 51. Ke4 {[%clk 0:00:16.5]} 51...
Qa2 {[%clk 0:00:17.3]} 52. Be3 {[%clk 0:00:14]} 52... Qc4+ {[%clk 0:00:16.6]}
53. Nd4 {[%clk 0:00:13.8]} 53... h4 {[%clk 0:00:16.3]} 54. e6 {[%clk 0:00:13.7]}
54... Kf6 {[%clk 0:00:14.9]} 55. e7 {[%clk 0:00:12.5]} 55... Kxe7 {[%clk
0:00:14.1]} 56. Bxg5+ {[%clk 0:00:14.4]} 56... Kd7 {[%clk 0:00:14.8]} 57. Bxh4
{[%clk 0:00:16.3]} 57... a5 {[%clk 0:00:14.9]} 58. Ke3 {[%clk 0:00:15]} 58... b5
{[%clk 0:00:14.9]} 59. Nf3 {[%clk 0:00:13.6]} 59... Kc8 {[%clk 0:00:14.2]} 60.
Be1 {[%clk 0:00:12.5]} 60... b4 {[%clk 0:00:14.8]} 61. Ne5 {[%clk 0:00:13.4]}
61... Qc1+ {[%clk 0:00:13.8]} 62. Bd2 {[%clk 0:00:14.2]} 62... Qc5+ {[%clk
0:00:14.4]} 63. Ke4 {[%clk 0:00:14.9]} 63... a4 {[%clk 0:00:15.1]} 64. Nd3
{[%clk 0:00:13]} 64... Qc4+ {[%clk 0:00:16]} 65. Ke3 {[%clk 0:00:15.6]} 65... b3
{[%clk 0:00:16.7]} 66. Bc1 {[%clk 0:00:17.5]} 66... Qxc1+ {[%clk 0:00:13.2]} 67.
Nxc1 {[%clk 0:00:14.7]} 67... b2 {[%clk 0:00:14.4]} 68. Kd2 {[%clk 0:00:15.4]}
68... b1=Q {[%clk 0:00:14.5]} 0-1

[Event "*** MasterClass Titled Tuesday Blitz"]
[Site "Chess.com"]
[Date "2017.08.01"]
[Round "10"]
[White "sergiochess83"]
[Black "Sebastian"]
[Result "1/2-1/2"]
[WhiteElo "2680"]
[BlackElo "2782"]
[TimeControl "180+2"]
[EndTime "15:21:33 PDT"]
[Termination "Game drawn by 50-move rule"]

1. e4 {[%clk 0:03:01.9]} 1... e5 {[%clk 0:03:00.9]} 2. Nf3 {[%clk 0:03:02.4]}
2... Nc6 {[%clk 0:03:02.3]} 3. Bb5 {[%clk 0:03:01.7]} 3... Nf6 {[%clk
0:03:02.9]} 4. O-O {[%clk 0:02:59.7]} 4... Nxe4 {[%clk 0:03:03.4]} 5. Re1 {[%clk
0:02:59.9]} 5... Nd6 {[%clk 0:03:04.6]} 6. Nxe5 {[%clk 0:02:58.2]} 6... Be7
{[%clk 0:03:05.9]} 7. Bf1 {[%clk 0:02:55.5]} 7... Nxe5 {[%clk 0:03:04]} 8. Rxe5
{[%clk 0:02:56]} 8... O-O {[%clk 0:03:05.7]} 9. d4 {[%clk 0:02:53.7]} 9... Bf6
{[%clk 0:03:05.7]} 10. Re1 {[%clk 0:02:52.8]} 10... Re8 {[%clk 0:03:06.2]} 11.
Rxe8+ {[%clk 0:02:44.2]} 11... Nxe8 {[%clk 0:03:06.9]} 12. c3 {[%clk 0:02:43.8]}
12... d5 {[%clk 0:03:07.4]} 13. Bf4 {[%clk 0:02:42.3]} 13... Bf5 {[%clk
0:03:04.9]} 14. Nd2 {[%clk 0:02:35]} 14... c6 {[%clk 0:03:05.7]} 15. Nf3 {[%clk
0:02:30.5]} 15... Nd6 {[%clk 0:03:06.3]} 16. Bd3 {[%clk 0:02:28.2]} 16... Bxd3
{[%clk 0:03:02.8]} 17. Qxd3 {[%clk 0:01:26.4]} 17... Ne4 {[%clk 0:03:03.5]} 18.
Nd2 {[%clk 0:01:23.1]} 18... Nxd2 {[%clk 0:03:03.8]} 19. Qxd2 {[%clk 0:01:22.8]}
19... Qd7 {[%clk 0:03:04.5]} 20. Re1 {[%clk 0:01:21.3]} 20... Re8 {[%clk
0:03:04.8]} 21. Rxe8+ {[%clk 0:01:19.4]} 21... Qxe8 {[%clk 0:03:05.9]} 22. Qe3
{[%clk 0:01:21.1]} 22... Qd8 {[%clk 0:02:56.5]} 23. h3 {[%clk 0:01:17.3]} 23...
h5 {[%clk 0:02:55.2]} 24. b3 {[%clk 0:01:11]} 24... g6 {[%clk 0:02:55.9]} 25.
Be5 {[%clk 0:01:04.6]} 25... Bg5 {[%clk 0:02:55]} 26. Bf4 {[%clk 0:01:02.9]}
26... Be7 {[%clk 0:02:49.8]} 27. Be5 {[%clk 0:01:00]} 27... Bf8 {[%clk
0:02:40.1]} 28. Qf4 {[%clk 0:00:56.2]} 28... a6 {[%clk 0:02:33.7]} 29. a4 {[%clk
0:00:54.2]} 29... Qe7 {[%clk 0:02:33.9]} 30. g4 {[%clk 0:00:47.9]} 30... Qh4
{[%clk 0:02:16.5]} 31. Kg2 {[%clk 0:00:45.9]} 31... hxg4 {[%clk 0:02:17.7]} 32.
hxg4 {[%clk 0:00:46.1]} 32... Bh6 {[%clk 0:02:18.8]} 33. Qg3 {[%clk 0:00:44.9]}
33... Qe7 {[%clk 0:02:03.5]} 34. Qd3 {[%clk 0:00:38.7]} 34... Qa3 {[%clk
0:01:58.1]} 35. Qf3 {[%clk 0:00:32.9]} 35... Bg5 {[%clk 0:01:40.6]} 36. Bf4
{[%clk 0:00:20.3]} 36... Be7 {[%clk 0:01:26.1]} 37. Qe3 {[%clk 0:00:19.3]} 37...
Bf8 {[%clk 0:01:04.7]} 38. Qe8 {[%clk 0:00:19.8]} 38... Qe7 {[%clk 0:01:04]} 39.
Qxe7 {[%clk 0:00:20.4]} 39... Bxe7 {[%clk 0:01:05.2]} 40. Kf3 {[%clk 0:00:21.5]}
40... f6 {[%clk 0:01:00.4]} 41. Ke3 {[%clk 0:00:21.1]} 41... Kf7 {[%clk
0:01:01.8]} 42. Kd3 {[%clk 0:00:20.6]} 42... Ke6 {[%clk 0:01:03.5]} 43. f3
{[%clk 0:00:20.7]} 43... b5 {[%clk 0:01:03.7]} 44. axb5 {[%clk 0:00:18.8]} 44...
cxb5 {[%clk 0:01:05.1]} 45. b4 {[%clk 0:00:16.9]} 45... Bd8 {[%clk 0:01:06.3]}
46. Bg3 {[%clk 0:00:15.9]} 46... f5 {[%clk 0:01:02.1]} 47. Bf4 {[%clk
0:00:15.2]} 47... Bh4 {[%clk 0:01:00.9]} 48. Bc7 {[%clk 0:00:12.8]} 48... Be7
{[%clk 0:00:56.3]} 49. Bf4 {[%clk 0:00:12.6]} 49... Kf6 {[%clk 0:00:56.7]} 50.
Ke2 {[%clk 0:00:07.2]} 50... Bd8 {[%clk 0:00:57.4]} 51. Kd3 {[%clk 0:00:05.4]}
51... a5 {[%clk 0:00:54.3]} 52. bxa5 {[%clk 0:00:06.4]} 52... Bxa5 {[%clk
0:00:55.7]} 53. Kc2 {[%clk 0:00:05.2]} 53... Bd8 {[%clk 0:00:40.5]} 54. Kd3
{[%clk 0:00:06.4]} 54... Be7 {[%clk 0:00:41.5]} 55. Kc2 {[%clk 0:00:05.2]} 55...
Ke6 {[%clk 0:00:37.2]} 56. Kd3 {[%clk 0:00:05.9]} 56... fxg4 {[%clk 0:00:35.5]}
57. fxg4 {[%clk 0:00:06.8]} 57... Kd7 {[%clk 0:00:36.8]} 58. Kc2 {[%clk
0:00:04.4]} 58... Kc6 {[%clk 0:00:38.5]} 59. Kd3 {[%clk 0:00:05.5]} 59... Kb6
{[%clk 0:00:39.4]} 60. Kc2 {[%clk 0:00:06.3]} 60... Ka5 {[%clk 0:00:40.9]} 61.
Kb3 {[%clk 0:00:07.5]} 61... Kb6 {[%clk 0:00:41.8]} 62. Be3 {[%clk 0:00:08.5]}
62... Kc6 {[%clk 0:00:42.9]} 63. Bf4 {[%clk 0:00:09.8]} 63... Kd7 {[%clk
0:00:43.8]} 64. Kc2 {[%clk 0:00:11.4]} 64... Ke6 {[%clk 0:00:44.7]} 65. Kd3
{[%clk 0:00:12.7]} 65... Bd8 {[%clk 0:00:45.8]} 66. Kc2 {[%clk 0:00:12.8]} 66...
Ba5 {[%clk 0:00:46.8]} 67. Kd3 {[%clk 0:00:13.9]} 67... Kf6 {[%clk 0:00:47.8]}
68. Kc2 {[%clk 0:00:14.7]} 68... Bd8 {[%clk 0:00:45.2]} 69. Kd3 {[%clk 0:00:16]}
69... Ke6 {[%clk 0:00:45.3]} 70. Kc2 {[%clk 0:00:16.8]} 70... Be7 {[%clk
0:00:46.3]} 71. Kd3 {[%clk 0:00:18.1]} 71... Kd7 {[%clk 0:00:46.1]} 72. Kc2
{[%clk 0:00:19.1]} 72... Kc6 {[%clk 0:00:47.4]} 73. Kb3 {[%clk 0:00:13.1]} 73...
Kb6 {[%clk 0:00:48.4]} 74. Kc2 {[%clk 0:00:09]} 74... Bh4 {[%clk 0:00:47.4]} 75.
Kb3 {[%clk 0:00:07.5]} 75... Be1 {[%clk 0:00:47.9]} 76. Kb4 {[%clk 0:00:06]}
76... Bf2 {[%clk 0:00:46]} 77. Kb3 {[%clk 0:00:07.4]} 77... Bh4 {[%clk
0:00:44.8]} 78. Kb4 {[%clk 0:00:07.5]} 78... Be7+ {[%clk 0:00:45.6]} 79. Kb3
{[%clk 0:00:08.9]} 79... Kc6 {[%clk 0:00:47.2]} 80. Kc2 {[%clk 0:00:09.7]} 80...
b4 {[%clk 0:00:48.2]} 81. cxb4 {[%clk 0:00:10.6]} 81... Kb5 {[%clk 0:00:47.9]}
82. Kd3 {[%clk 0:00:11.9]} 82... Kxb4 {[%clk 0:00:48.7]} 83. Bd2+ {[%clk
0:00:10.9]} 83... Kb3 {[%clk 0:00:49.8]} 84. Bf4 {[%clk 0:00:10.8]} 84... Bb4
{[%clk 0:00:51.3]} 85. Be3 {[%clk 0:00:11.5]} 85... Kb2 {[%clk 0:00:52.5]} 86.
Bf4 {[%clk 0:00:12]} 86... Kb1 {[%clk 0:00:53.6]} 87. Be3 {[%clk 0:00:12.3]}
87... Bd6 {[%clk 0:00:54.4]} 88. Bg5 {[%clk 0:00:12.9]} 88... Kb2 {[%clk
0:00:55.5]} 89. Be3 {[%clk 0:00:13.6]} 89... Kb3 {[%clk 0:00:56.7]} 90. Bg5
{[%clk 0:00:14.8]} 90... Kb4 {[%clk 0:00:57.5]} 91. Be3 {[%clk 0:00:15.9]} 91...
Kb5 {[%clk 0:00:58.7]} 92. Bg5 {[%clk 0:00:17]} 92... Kc6 {[%clk 0:00:59.7]} 93.
Be3 {[%clk 0:00:18]} 93... Kd7 {[%clk 0:01:00.8]} 94. Ke2 {[%clk 0:00:18.8]}
94... Ke6 {[%clk 0:01:01.7]} 95. Kf3 {[%clk 0:00:19.9]} 95... Bc7 {[%clk
0:01:02.3]} 96. Bf4 {[%clk 0:00:17.6]} 96... Bb6 {[%clk 0:01:01.5]} 97. Be3
{[%clk 0:00:18.6]} 97... Kf6 {[%clk 0:01:03]} 98. Ke2 {[%clk 0:00:17.5]} 98...
Bc7 {[%clk 0:01:02.5]} 99. Kf3 {[%clk 0:00:18.8]} 99... Bd6 {[%clk 0:01:03]}
100. Ke2 {[%clk 0:00:19.6]} 100... Ke6 {[%clk 0:01:03.5]} 101. Kf3 {[%clk
0:00:20.8]} 101... Be7 {[%clk 0:01:04.1]} 102. Bf4 {[%clk 0:00:20.9]} 102... Bf6
{[%clk 0:01:05]} 103. Be3 {[%clk 0:00:22.1]} 103... Kd7 {[%clk 0:01:06.6]} 104.
Ke2 {[%clk 0:00:23.2]} 104... Kc6 {[%clk 0:01:08]} 105. Kd3 {[%clk 0:00:23.8]}
105... Kb5 {[%clk 0:01:09.6]} 106. Bd2 {[%clk 0:00:24.2]} 106... Be7 {[%clk
0:01:10.2]} 107. Be3 {[%clk 0:00:23.7]} 107... Bd6 {[%clk 0:01:11.1]} 108. Bd2
{[%clk 0:00:24.6]} 108... Bb4 {[%clk 0:01:12]} 109. Be3 {[%clk 0:00:25]} 109...
Ka4 {[%clk 0:01:12.6]} 110. Bf4 {[%clk 0:00:24.5]} 110... Kb3 {[%clk 0:01:13.6]}
111. Be3 {[%clk 0:00:25.5]} 111... Bd6 {[%clk 0:01:14.5]} 112. Bg5 {[%clk
0:00:26.3]} 112... Kb2 {[%clk 0:01:15.5]} 113. Be3 {[%clk 0:00:27.1]} 113... Kb1
{[%clk 0:01:16.6]} 114. Bg5 {[%clk 0:00:27.2]} 114... Ba3 {[%clk 0:01:17.3]}
115. Kc3 {[%clk 0:00:21.7]} 115... Bb2+ {[%clk 0:01:15.8]} 116. Kd3 {[%clk
0:00:22.6]} 116... Ka2 {[%clk 0:01:16]} 117. Be3 {[%clk 0:00:21.9]} 117... Kb3
{[%clk 0:01:17.1]} 118. Bg5 {[%clk 0:00:22.7]} 118... Ba3 {[%clk 0:01:17.8]}
119. Be3 {[%clk 0:00:23.7]} 119... Bd6 {[%clk 0:01:18.7]} 120. Bg5 {[%clk
0:00:24.7]} 120... Kb4 {[%clk 0:01:19.5]} 121. Bd2+ {[%clk 0:00:25.4]} 121...
Kb5 {[%clk 0:01:20.6]} 122. Be3 {[%clk 0:00:26.6]} 122... Kc6 {[%clk 0:01:21.9]}
123. Bg5 {[%clk 0:00:27.4]} 123... Kd7 {[%clk 0:01:23]} 124. Be3 {[%clk
0:00:28.2]} 124... Ke6 {[%clk 0:01:24.4]} 125. Ke2 {[%clk 0:00:29.3]} 125... Kf7
{[%clk 0:01:25.4]} 126. Kf3 {[%clk 0:00:30.5]} 126... Kg7 {[%clk 0:01:26.3]}
127. Bf4 {[%clk 0:00:24.9]} 127... Be7 {[%clk 0:01:27.3]} 128. Be3 {[%clk
0:00:25.2]} 128... Bf6 {[%clk 0:01:27.1]} 129. Kf4 {[%clk 0:00:25.3]} 129... Kf7
{[%clk 0:01:27.3]} 130. Kf3 {[%clk 0:00:26.5]} 130... Kg8 {[%clk 0:01:27]} 131.
Kf4 {[%clk 0:00:27.4]} 131... Kf7 {[%clk 0:01:27.7]} 132. Kf3 {[%clk 0:00:28.7]}
132... Ke8 {[%clk 0:01:28.6]} 133. Kf4 {[%clk 0:00:30.1]} 133... Kd7 {[%clk
0:01:29.1]} 134. Kf3 {[%clk 0:00:31.5]} 134... Kc6 {[%clk 0:01:30.3]} 135. Ke2
{[%clk 0:00:32.2]} 135... Kb5 {[%clk 0:01:31.6]} 136. Kd3 {[%clk 0:00:33.5]}
136... Kb4 {[%clk 0:01:32.9]} 137. Bd2+ {[%clk 0:00:34.3]} 137... Kb3 {[%clk
0:01:34.1]} 1/2-1/2